fUSD/lending_fUSD_20260526
["ID","MTS","AMOUNT","RATE_DAILY","PERIOD"]
[423010123,1779745876000,-1000.0,0.00030137,10]
[423010109,1779745876000,-189.90989107,0.0003012,7]
[423010114,1779745876000,-15019.67951506,0.0003013,2]
[423010112,1779745876000,-121754.13637091,0.0003013,7]
[423010115,1779745876000,-9939.22344018,0.0003013,7]
[423010113,1779745876000,-500.0,0.0003013,2]
[423010110,1779745876000,-380.93310028,0.0003012,7]
[423010117,1779745876000,-1092.1223063,0.0003013,2]
[423010116,1779745876000,-40935.11181467,0.0003013,30]
[423010130,1779745876000,-1000.0,0.00030137,10]
[423010131,1779745876000,-1000.0,0.00030137,10]
[423010120,1779745876000,-205.16578004,0.0003013,2]
[423010122,1779745876000,-1000.0,0.00030137,10]
[423010119,1779745876000,-644.92515287,0.0003013,2]
[423010111,1779745876000,-158.64504176,0.0003012,7]
[423010155,1779745876000,-206.34,0.00030536,30]
[423010108,1779745876000,-337.27146107,0.0003012,7]
[423010156,1779745876000,-1630.46,0.000306,2]
[423010184,1779745876000,-597.42366951,0.00030942,7]
[423010199,1779745876000,-287.75391147,0.00030942,7]
[423010194,1779745876000,-731.16896752,0.00030942,7]
[423010198,1779745876000,-985.85283786,0.00030942,7]
[423010192,1779745876000,-154.66023407,0.00030942,7]
[423010197,1779745876000,-475.76780024,0.00030942,7]
[423010191,1779745876000,-153.14750253,0.00030942,7]
[423010190,1779745876000,-258.97131654,0.00030942,7]
[423010201,1779745876000,-507.06338077,0.00030942,7]
[423010200,1779745876000,-454.13684994,0.00030942,7]
[423010189,1779745876000,-335.20312414,0.00030942,7]
[423010193,1779745876000,-886.70720831,0.00030942,7]
[423010186,1779745876000,-154.25369428,0.00030942,7]
[423010196,1779745876000,-230.10341492,0.00030942,5]
[423010213,1779745876000,-203.92252043,0.00030942,7]
[423010202,1779745876000,-153.2932864,0.00030942,7]
[423010204,1779745876000,-191.11564568,0.00030942,7]
[423010206,1779745876000,-490.18413551,0.00030942,7]
[423010209,1779745876000,-298.85565542,0.00030942,7]
[423010203,1779745876000,-977.50429477,0.00030942,7]
[423010207,1779745876000,-287.56282241,0.00030942,7]
[423010205,1779745876000,-194.45427701,0.00030942,7]
[423010208,1779745876000,-199.5101052,0.00030942,7]
[423010210,1779745876000,-291.19060914,0.00030942,7]
[423010212,1779745876000,-279.42044027,0.00030942,7]
[423010211,1779745876000,-498.22527532,0.00030942,7]
[423010195,1779745876000,-232.96840148,0.00030942,7]
[423010185,1779745876000,-190.90262356,0.00030942,5]
[423010154,1779745876000,-188.88,0.00030531,60]
[423010183,1779745876000,-283.22129938,0.00030942,7]
[423010160,1779745876000,-290.40889148,0.00030859,30]
[423010164,1779745876000,-154.0,0.00030874,30]
[423010159,1779745876000,-150.0,0.00030859,30]
[423010158,1779745876000,-7541.78,0.00030773,7]
[423010157,1779745876000,-1776.64,0.00030747,2]
[423010162,1779745876000,-1263.99313475,0.00030859,30]
[423010163,1779745876000,-206.72430536,0.00030859,30]
[423010182,1779745876000,-1433.33152485,0.0003094,7]
[423010166,1779745876000,-158.0,0.00030874,30]
[423010176,1779745876000,-157.0,0.00030876,30]
[423010165,1779745876000,-156.0,0.00030874,30]
[423010168,1779745876000,-1497.0,0.00030874,30]
[423010167,1779745876000,-452.0,0.00030874,30]
[423010161,1779745876000,-150.0,0.00030859,30]
[423010171,1779745876000,-1789.0,0.00030876,30]
[423010169,1779745876000,-208.0,0.00030874,30]
[423010187,1779745876000,-209.95788269,0.00030942,7]
[423010188,1779745876000,-457.99687892,0.00030942,7]
[423010181,1779745876000,-506.30283139,0.00030933,2]
[423010177,1779745876000,-3430.83282929,0.0003089,49]
[423010179,1779745876000,-2658.8,0.000309,120]
[423010180,1779745876000,-238.96999999,0.0003092,30]
[423010173,1779745876000,-164.0,0.00030876,30]
[423010172,1779745876000,-156.0,0.00030876,30]
[423010175,1779745876000,-544.0,0.00030876,30]
[423010170,1779745876000,-357.0,0.00030874,30]
[423010174,1779745876000,-2067.0,0.00030876,30]
[423010178,1779745876000,-897.71,0.000309,7]
[423010259,1779745877000,-294.413354,0.000312,7]
[423010252,1779745877000,-188.88,0.00031079,60]
[423010256,1779745877000,-421.89,0.00031167,120]
[423010255,1779745877000,-206.34,0.00031109,2]
[423010253,1779745877000,-7299.95,0.00031095,3]
[423010244,1779745877000,-287.31570339,0.00031016,7]
[423010241,1779745877000,-393.96076625,0.00031016,7]
[423010243,1779745877000,-254.00835235,0.00031016,7]
[423010242,1779745877000,-450.22474388,0.00031016,7]
[423010245,1779745877000,-505.9071916,0.00031016,7]
[423010250,1779745877000,-695.39793187,0.0003106,2]
[423010257,1779745877000,-323.422222,0.000312,7]
[423010270,1779745877000,-394.6830663,0.00031225,7]
[423010260,1779745877000,-417.096847,0.000312,7]
[423010254,1779745877000,-200.0,0.00031096,2]
[423010258,1779745877000,-454.515998,0.000312,7]
[423010262,1779745877000,-470.30202098,0.00031225,7]
[423010261,1779745877000,-504.58218076,0.00031224,7]
[423010274,1779745877000,-242.38806149,0.00031225,7]
[423010264,1779745877000,-392.99891079,0.00031225,7]
[423010275,1779745877000,-152.0,0.00031273,11]
[423010266,1779745877000,-492.87593422,0.00031225,7]
[423010263,1779745877000,-396.81010849,0.00031225,7]
[423010265,1779745877000,-413.23416038,0.00031225,7]
[423010268,1779745877000,-602.50823764,0.00031225,7]
[423010240,1779745877000,-474.0084094,0.00031016,7]
[423010251,1779745877000,-668.65185756,0.0003106,2]
[423010237,1779745877000,-271.13681163,0.00031016,7]
[423010226,1779745877000,-307.303085,0.00030996,7]
[423010248,1779745877000,-317.29008353,0.00031016,7]
[423010269,1779745877000,-475.83418677,0.00031225,7]
[423010224,1779745877000,-539.7087785,0.00030996,7]
[423010225,1779745877000,-498.10567244,0.00030996,7]
[423010214,1779745877000,-490.31482089,0.00030946,2]
[423010217,1779745877000,-220.4886452,0.0003095,2]
[423010220,1779745877000,-257.2524132,0.00030996,7]
[423010215,1779745877000,-309.36926831,0.00030946,2]
[423010219,1779745877000,-522.00536201,0.00030987,7]
[423010223,1779745877000,-513.72594938,0.00030996,7]
[423010216,1779745877000,-552.53703851,0.00030947,7]
[423010222,1779745877000,-204.55130395,0.00030996,7]
[423010218,1779745877000,-216.27921833,0.0003095,2]
[423010221,1779745877000,-526.14000271,0.00030996,7]
[423010227,1779745877000,-247.97694113,0.00030996,7]
[423010228,1779745877000,-1164.43,0.00031,7]
[423010229,1779745877000,-500.0,0.00031,2]
[423010231,1779745877000,-73918.36452999,0.00031,2]
[423010234,1779745877000,-10813.92,0.00031,14]
[423010232,1779745877000,-10180.43765517,0.00031,30]
[423010235,1779745877000,-1358.6893174,0.00031,32]
[423010233,1779745877000,-10000.0,0.00031,30]
[423010230,1779745877000,-10133.55942299,0.00031,2]
[423010236,1779745877000,-376.24057142,0.00031016,7]
[423010238,1779745877000,-483.36709298,0.00031016,7]
[423010246,1779745877000,-379.81978215,0.00031016,7]
[423010239,1779745877000,-241.86239153,0.00031016,7]
[423010247,1779745877000,-228.75740668,0.00031016,2]
[423010249,1779745877000,-571.39965042,0.00031016,7]
[423010267,1779745877000,-244.98208301,0.00031225,7]
[423010271,1779745877000,-520.30610803,0.00031225,7]
[423010272,1779745877000,-216.43236909,0.00031225,7]
[423010307,1779745877000,-164.87208417,0.00031538,2]
[423010310,1779745877000,-233.0117566,0.00031538,7]
[423010309,1779745877000,-223.20043311,0.00031538,7]
[423010312,1779745877000,-380.57157546,0.00031538,7]
[423010308,1779745877000,-246.74548457,0.00031538,7]
[423010311,1779745877000,-150.83059403,0.00031538,7]
[423010314,1779745877000,-974.8919567,0.00031538,7]
[423010317,1779745877000,-465.93680297,0.00031538,7]
[423010315,1779745877000,-1182.27627775,0.00031538,7]
[423010318,1779745877000,-460.20682985,0.00031538,5]
[423010313,1779745877000,-309.32046813,0.00031538,7]
[423010322,1779745877000,-713.65170036,0.00031538,7]
[423010320,1779745877000,-164.96155814,0.00031538,7]
[423010306,1779745877000,-306.29500505,0.00031538,7]
[423010316,1779745877000,-428.37918736,0.00031538,7]
[423010323,1779745877000,-1314.47045048,0.00031538,7]
[423010324,1779745877000,-390.20428934,0.00031538,7]
[423010327,1779745877000,-676.0845077,0.00031538,7]
[423010328,1779745877000,-348.745654,0.00031538,7]
[423010330,1779745877000,-410.44676965,0.00031538,7]
[423010332,1779745877000,-160.51202567,0.00031538,7]
[423010329,1779745877000,-173.35854621,0.00031538,7]
[423010333,1779745877000,-408.76527045,0.00031538,7]
[423010325,1779745877000,-575.50782294,0.00031538,7]
[423010331,1779745877000,-306.58657279,0.00031538,7]
[423010334,1779745877000,-168.69393751,0.00031538,2]
[423010326,1779745877000,-605.51579993,0.00031538,7]
[423010273,1779745877000,-487.77772008,0.00031225,7]
[423010319,1779745877000,-250.52263548,0.00031538,7]
[423010305,1779745877000,-502.80468622,0.00031538,7]
[423010321,1779745877000,-225.19112321,0.00031538,7]
[423010304,1779745877000,-517.94263307,0.00031538,7]
[423010302,1779745877000,-610.66250523,0.00031538,7]
[423010278,1779745877000,-5000.0,0.00031359,2]
[423010277,1779745877000,-5000.0,0.00031359,2]
[423010283,1779745877000,-222.08,0.00031426,13]
[423010280,1779745877000,-5000.0,0.00031359,2]
[423010287,1779745877000,-151.36,0.00031507,30]
[423010284,1779745877000,-20218.64819836,0.0003143,4]
[423010288,1779745877000,-151.36785639,0.00031507,30]
[423010279,1779745877000,-5000.0,0.00031359,2]
[423010285,1779745877000,-200.72478961,0.000315,2]
[423010286,1779745877000,-150.0,0.000315,2]
[423010281,1779745877000,-276.2425,0.00031426,13]
[423010282,1779745877000,-222.09,0.00031426,13]
[423010290,1779745877000,-675.07044185,0.0003153,2]
[423010276,1779745877000,-6725.66200747,0.00031359,2]
[423010303,1779745877000,-412.40033954,0.00031538,7]
[423010300,1779745877000,-308.50738856,0.00031538,7]
[423010299,1779745877000,-381.80524713,0.00031538,5]
[423010293,1779745877000,-384.75384127,0.00031538,7]
[423010294,1779745877000,-796.56489268,0.00031538,7]
[423010292,1779745877000,-566.44259876,0.00031538,7]
[423010298,1779745877000,-236.15308152,0.00031538,7]
[423010296,1779745877000,-427.53026753,0.00031538,7]
[423010295,1779745877000,-425.73296613,0.00031538,7]
[423010291,1779745877000,-1911.10869981,0.00031536,7]
[423010289,1779745877000,-300.0,0.00031507,2]
[423010301,1779745877000,-419.91576537,0.00031538,7]
[423010297,1779745877000,-316.27301743,0.00031538,7]
[423010376,1779745878000,-427.56459958,0.00031613,7]
[423010386,1779745878000,-674.54292214,0.00031613,7]
[423010375,1779745878000,-433.26075314,0.00031607,7]
[423010377,1779745878000,-564.36085713,0.00031613,7]
[423010374,1779745878000,-495.95388226,0.00031593,7]
[423010367,1779745878000,-684.96793251,0.00031593,7]
[423010372,1779745878000,-460.9546275,0.00031593,7]
[423010371,1779745878000,-330.68399579,0.00031593,7]
[423010369,1779745878000,-434.51436024,0.00031593,7]
[423010370,1779745878000,-664.14089659,0.00031593,7]
[423010384,1779745878000,-508.0167047,0.00031613,7]
[423010368,1779745878000,-719.61170467,0.00031593,7]
[423010373,1779745878000,-177.22374824,0.00031593,7]
[423010387,1779745878000,-569.72967322,0.00031613,7]
[423010381,1779745878000,-632.01121253,0.00031613,7]
[423010385,1779745878000,-574.63140677,0.00031613,7]
[423010380,1779745878000,-483.72478305,0.00031613,7]
[423010379,1779745878000,-725.05063948,0.00031613,7]
[423010378,1779745878000,-542.27362326,0.00031613,7]
[423010382,1779745878000,-590.94114937,0.00031613,7]
[423010389,1779745878000,-398.40439309,0.00031613,7]
[423010399,1779745878000,-672.77624101,0.00031824,7]
[423010401,1779745878000,-228.58452247,0.00031825,7]
[423010400,1779745878000,-627.0693613,0.00031825,7]
[423010391,1779745878000,-761.86620056,0.00031613,7]
[423010397,1779745878000,-250.0,0.00031797,7]
[423010396,1779745878000,-250.0,0.00031797,7]
[423010390,1779745878000,-457.51481335,0.00031613,2]
[423010383,1779745878000,-675.33711582,0.00031613,7]
[423010365,1779745878000,-409.1026079,0.00031593,7]
[423010335,1779745878000,-1303.3390597,0.00031538,7]
[423010364,1779745878000,-701.52000362,0.00031593,7]
[423010395,1779745878000,-250.0,0.00031797,7]
[423010337,1779745878000,-388.90855403,0.00031538,7]
[423010347,1779745878000,-664.3003671,0.00031538,7]
[423010349,1779745878000,-558.84088055,0.00031538,7]
[423010350,1779745878000,-231.92123088,0.00031538,7]
[423010348,1779745878000,-158.54045964,0.00031538,7]
[423010345,1779745878000,-597.71131085,0.00031538,7]
[423010336,1779745878000,-382.23129137,0.00031538,7]
[423010339,1779745878000,-653.57884735,0.00031538,7]
[423010344,1779745878000,-399.02021039,0.00031538,7]
[423010342,1779745878000,-333.44085892,0.00031538,7]
[423010343,1779745878000,-153.37729547,0.00031538,7]
[423010341,1779745878000,-160.06580022,0.00031538,7]
[423010338,1779745878000,-307.01680066,0.00031538,7]
[423010346,1779745878000,-582.38121827,0.00031538,7]
[423010340,1779745878000,-575.12564482,0.00031538,7]
[423010352,1779745878000,-337.13840458,0.00031538,7]
[423010354,1779745878000,-314.66939621,0.00031538,7]
[423010353,1779745878000,-174.39690909,0.00031538,7]
[423010362,1779745878000,-696.00714935,0.00031584,7]
[423010351,1779745878000,-151.3250968,0.00031538,7]
[423010355,1779745878000,-320.30197905,0.00031538,7]
[423010361,1779745878000,-440.9772904,0.00031546,2]
[423010363,1779745878000,-514.5048264,0.00031593,7]
[423010358,1779745878000,-464.05390246,0.00031542,2]
[423010359,1779745878000,-736.71605135,0.00031543,7]
[423010357,1779745878000,-653.75309452,0.00031542,2]
[423010356,1779745878000,-407.84504085,0.00031538,7]
[423010360,1779745878000,-432.55843667,0.00031546,2]
[423010366,1779745878000,-369.7905925,0.00031593,7]
[423010393,1779745878000,-5000.0,0.00031638,2]
[423010459,1779745878000,-1643.0880631,0.00032134,7]
[423010398,1779745878000,-250.0,0.00031797,7]
[423010437,1779745878000,-191.89983958,0.00032,120]
[423010429,1779745878000,-9898.7614,0.000319,2]
[423010432,1779745878000,-200.27047624,0.00032,120]
[423010440,1779745878000,-671.19188037,0.00032,14]
[423010435,1779745878000,-1302.56323357,0.00032,30]
[423010431,1779745878000,-167.46077136,0.00032,120]
[423010433,1779745878000,-3686.28586234,0.00032,120]
[423010439,1779745878000,-1000.0,0.00032,14]
[423010441,1779745878000,-500.0,0.00032,2]
[423010442,1779745878000,-1599.39824138,0.00032,7]
[423010452,1779745878000,-200.0,0.00032055,2]
[423010443,1779745878000,-4411.51288838,0.00032,120]
[423010445,1779745878000,-1600.0,0.00032,120]
[423010446,1779745878000,-431.526,0.00032,120]
[423010447,1779745878000,-185.53011524,0.00032,120]
[423010448,1779745878000,-204.93526398,0.00032,120]
[423010449,1779745878000,-2500.0,0.00032,33]
[423010450,1779745878000,-700.0,0.00032,2]
[423010451,1779745878000,-1776.64,0.00032049,7]
[423010453,1779745878000,-238.96999999,0.00032094,30]
[423010455,1779745878000,-843.83805231,0.00032126,2]
[423010457,1779745878000,-1477.84534719,0.00032134,7]
[423010456,1779745878000,-763.32813153,0.00032134,7]
[423010454,1779745878000,-897.71,0.000321,7]
[423010458,1779745878000,-1218.61494587,0.00032134,7]
[423010388,1779745878000,-433.82475941,0.00031613,7]
[423010461,1779745878000,-845.10563462,0.00032134,7]
[423010460,1779745878000,-756.89474991,0.00032134,7]
[423010462,1779745878000,-1629.17382462,0.00032134,7]
[423010438,1779745878000,-1164.43,0.00032,7]
[423010436,1779745878000,-41334.60553302,0.00032,10]
[423010444,1779745878000,-10046.53930766,0.00032,30]
[423010430,1779745878000,-198.78368673,0.00032,120]
[423010392,1779745878000,-475.93512529,0.00031613,7]
[423010394,1779745878000,-206.34,0.00031683,7]
[423010434,1779745878000,-1761.67189906,0.00032,2]
[423010413,1779745878000,-650.37029344,0.00031825,7]
[423010402,1779745878000,-595.21516273,0.00031825,7]
[423010403,1779745878000,-589.49836619,0.00031825,7]
[423010414,1779745878000,-484.77612298,0.00031825,7]
[423010412,1779745878000,-693.74147737,0.00031825,7]
[423010411,1779745878000,-425.19887536,0.00031825,7]
[423010406,1779745878000,-657.16791229,0.00031825,7]
[423010410,1779745878000,-592.02459946,0.00031825,7]
[423010409,1779745878000,-634.44558236,0.00031825,7]
[423010405,1779745878000,-619.85124056,0.00031825,7]
[423010407,1779745878000,-489.96416602,0.00031825,7]
[423010408,1779745878000,-803.34431686,0.00031825,7]
[423010404,1779745878000,-404.36817186,0.00031825,7]
[423010426,1779745878000,-544.0,0.00031876,30]
[423010417,1779745878000,-159.51206997,0.00031874,30]
[423010416,1779745878000,-156.0,0.00031874,30]
[423010427,1779745878000,-157.0,0.00031876,30]
[423010423,1779745878000,-156.0,0.00031876,30]
[423010419,1779745878000,-1497.0,0.00031874,30]
[423010425,1779745878000,-2067.0,0.00031876,30]
[423010421,1779745878000,-357.0,0.00031874,30]
[423010422,1779745878000,-1789.0,0.00031876,30]
[423010418,1779745878000,-452.0,0.00031874,30]
[423010415,1779745878000,-154.0,0.00031874,30]
[423010428,1779745878000,-2658.8,0.000319,120]
[423010420,1779745878000,-208.0,0.00031874,30]
[423010424,1779745878000,-164.0,0.00031876,30]
[423010504,1779745879000,-380.41959083,0.00032876,2]
[423010494,1779745879000,-452.0,0.00032874,30]
[423010501,1779745879000,-2067.0,0.00032876,30]
[423010499,1779745879000,-156.0,0.00032876,30]
[423010492,1779745879000,-154.0,0.00032874,30]
[423010493,1779745879000,-156.0,0.00032874,30]
[423010496,1779745879000,-208.0,0.00032874,30]
[423010495,1779745879000,-1497.0,0.00032874,30]
[423010498,1779745879000,-1789.0,0.00032876,30]
[423010513,1779745879000,-500.0,0.00032876,2]
[423010497,1779745879000,-357.0,0.00032874,30]
[423010505,1779745879000,-393.4230318,0.00032876,2]
[423010510,1779745879000,-233.41834551,0.00032876,2]
[423010503,1779745879000,-157.0,0.00032876,30]
[423010507,1779745879000,-500.0,0.00032876,2]
[423010506,1779745879000,-500.0,0.00032876,2]
[423010508,1779745879000,-500.0,0.00032876,2]
[423010512,1779745879000,-500.0,0.00032876,2]
[423010511,1779745879000,-500.0,0.00032876,2]
[423010509,1779745879000,-324.49175689,0.00032876,2]
[423010516,1779745879000,-577.20541857,0.00032876,2]
[423010526,1779745879000,-500.0,0.00032876,2]
[423010519,1779745879000,-577.20541857,0.00032876,2]
[423010515,1779745879000,-500.0,0.00032876,2]
[423010491,1779745879000,-206.34,0.00032829,2]
[423010514,1779745879000,-500.0,0.00032876,2]
[423010490,1779745879000,-9549.13846361,0.000328,7]
[423010517,1779745879000,-577.20541857,0.00032876,2]
[423010489,1779745879000,-4915.98631724,0.000328,2]
[423010464,1779745879000,-830.37545887,0.00032134,7]
[423010463,1779745879000,-816.97355919,0.00032134,7]
[423010466,1779745879000,-870.00893668,0.00032181,7]
[423010467,1779745879000,-876.90000452,0.0003219,7]
[423010473,1779745879000,-407.19,0.00032222,2]
[423010472,1779745879000,-626.0,0.00032222,2]
[423010471,1779745879000,-3548.7,0.0003221,5]
[423010469,1779745879000,-830.17612074,0.0003219,7]
[423010468,1779745879000,-856.20991564,0.0003219,7]
[423010465,1779745879000,-920.89506419,0.0003214,7]
[423010474,1779745879000,-3547.0,0.00032222,2]
[423010475,1779745879000,-519.0,0.00032222,2]
[423010500,1779745879000,-164.0,0.00032876,30]
[423010470,1779745879000,-152.0,0.00032202,12]
[423010479,1779745879000,-909.67296179,0.000323,2]
[423010487,1779745879000,-7541.78,0.00032569,14]
[423010478,1779745879000,-206.34,0.00032256,30]
[423010480,1779745879000,-342268.80403257,0.000323,120]
[423010488,1779745879000,-239.087999,0.000327,14]
[423010477,1779745879000,-418.0,0.00032222,2]
[423010481,1779745879000,-3463.01598803,0.00032339,62]
[423010486,1779745879000,-188.88,0.00032449,60]
[423010483,1779745879000,-1004.18039607,0.00032426,7]
[423010485,1779745879000,-812.9628668,0.00032426,7]
[423010482,1779745879000,-840.97030126,0.00032425,7]
[423010484,1779745879000,-793.05697795,0.00032426,7]
[423010476,1779745879000,-931.0,0.00032222,2]
[423010521,1779745879000,-663.78623134,0.00032876,2]
[423010502,1779745879000,-544.0,0.00032876,30]
[423010520,1779745879000,-663.78623134,0.00032876,2]
[423010554,1779745879000,-194.012164,0.00032877,7]
[423010555,1779745879000,-194.012164,0.00032877,7]
[423010556,1779745879000,-194.012164,0.00032877,7]
[423010558,1779745879000,-194.012164,0.00032877,7]
[423010566,1779745879000,-151.0,0.00032877,7]
[423010557,1779745879000,-194.012164,0.00032877,7]
[423010567,1779745879000,-151.0,0.00032877,7]
[423010565,1779745879000,-152.890669,0.00032877,7]
[423010560,1779745879000,-194.012164,0.00032877,7]
[423010563,1779745879000,-194.012172,0.00032877,7]
[423010559,1779745879000,-194.012164,0.00032877,7]
[423010564,1779745879000,-151.0,0.00032877,7]
[423010548,1779745879000,-194.012164,0.00032877,7]
[423010562,1779745879000,-194.012164,0.00032877,7]
[423010570,1779745879000,-151.0,0.00032877,7]
[423010569,1779745879000,-151.0,0.00032877,7]
[423010571,1779745879000,-151.0,0.00032877,7]
[423010572,1779745879000,-151.0,0.00032877,7]
[423010574,1779745879000,-151.0,0.00032877,7]
[423010577,1779745879000,-289.401155,0.00032877,7]
[423010576,1779745879000,-252.593066,0.00032877,7]
[423010579,1779745879000,-289.401155,0.00032877,7]
[423010575,1779745879000,-151.0,0.00032877,7]
[423010578,1779745879000,-289.401155,0.00032877,7]
[423010573,1779745879000,-151.0,0.00032877,7]
[423010518,1779745879000,-577.20541857,0.00032876,2]
[423010561,1779745879000,-194.012164,0.00032877,7]
[423010550,1779745879000,-194.012164,0.00032877,7]
[423010568,1779745879000,-151.0,0.00032877,7]
[423010544,1779745879000,-194.012164,0.00032877,7]
[423010522,1779745879000,-202.29321259,0.00032876,2]
[423010523,1779745879000,-178.92929386,0.00032876,2]
[423010525,1779745879000,-370.89186009,0.00032876,2]
[423010524,1779745879000,-222.21848129,0.00032876,2]
[423010528,1779745879000,-156.0,0.00032877,5]
[423010546,1779745879000,-194.012164,0.00032877,7]
[423010537,1779745879000,-151.0,0.00032877,7]
[423010538,1779745879000,-151.0,0.00032877,7]
[423010529,1779745879000,-271.671968,0.00032877,7]
[423010527,1779745879000,-313.80218157,0.00032876,2]
[423010540,1779745879000,-151.0,0.00032877,7]
[423010530,1779745879000,-161.984966,0.00032877,7]
[423010532,1779745879000,-156.142865,0.00032877,7]
[423010535,1779745879000,-151.0,0.00032877,7]
[423010539,1779745879000,-299.231683,0.00032877,7]
[423010533,1779745879000,-231.356849,0.00032877,7]
[423010534,1779745879000,-158.007415,0.00032877,7]
[423010543,1779745879000,-153.954959,0.00032877,7]
[423010549,1779745879000,-194.012164,0.00032877,7]
[423010551,1779745879000,-194.012164,0.00032877,7]
[423010545,1779745879000,-194.012164,0.00032877,7]
[423010547,1779745879000,-194.012164,0.00032877,7]
[423010553,1779745879000,-194.012164,0.00032877,7]
[423010541,1779745879000,-151.0,0.00032877,7]
[423010542,1779745879000,-264.399684,0.00032877,7]
[423010536,1779745879000,-151.0,0.00032877,7]
[423010531,1779745879000,-151.0,0.00032877,7]
[423010552,1779745879000,-194.012164,0.00032877,7]
[423010597,1779745880000,-795.533408,0.00032877,7]
[423010590,1779745880000,-289.401155,0.00032877,7]
[423010594,1779745880000,-289.401155,0.00032877,7]
[423010592,1779745880000,-289.401155,0.00032877,7]
[423010591,1779745880000,-289.401155,0.00032877,7]
[423010593,1779745880000,-289.401155,0.00032877,7]
[423010588,1779745880000,-289.401155,0.00032877,7]
[423010585,1779745880000,-289.401155,0.00032877,7]
[423010581,1779745880000,-289.401155,0.00032877,7]
[423010589,1779745880000,-289.401155,0.00032877,7]
[423010587,1779745880000,-289.401155,0.00032877,7]
[423010586,1779745880000,-289.401155,0.00032877,7]
[423010584,1779745880000,-289.401155,0.00032877,7]
[423010583,1779745880000,-289.401155,0.00032877,7]
[423010580,1779745880000,-289.401155,0.00032877,7]
[423010582,1779745880000,-289.401155,0.00032877,7]
[423010607,1779745880000,-795.533408,0.00032877,7]
[423010595,1779745880000,-289.401155,0.00032877,7]
[423010600,1779745880000,-795.533408,0.00032877,7]
[423010598,1779745880000,-795.533408,0.00032877,7]
[423010603,1779745880000,-795.533408,0.00032877,7]
[423010615,1779745880000,-795.533408,0.00032877,7]
[423010620,1779745880000,-202.954818,0.00032877,7]
[423010611,1779745880000,-795.533408,0.00032877,7]
[423010614,1779745880000,-795.533408,0.00032877,7]
[423010616,1779745880000,-795.533412,0.00032877,7]
[423010609,1779745880000,-795.533408,0.00032877,7]
[423010612,1779745880000,-795.533408,0.00032877,7]
[423010619,1779745880000,-151.0,0.00032877,7]
[423010613,1779745880000,-795.533408,0.00032877,7]
[423010617,1779745880000,-350.51,0.00032877,2]
[423010608,1779745880000,-795.533408,0.00032877,7]
[423010605,1779745880000,-795.533408,0.00032877,7]
[423010606,1779745880000,-795.533408,0.00032877,7]
[423010602,1779745880000,-795.533408,0.00032877,7]
[423010601,1779745880000,-795.533408,0.00032877,7]
[423010596,1779745880000,-289.401155,0.00032877,7]
[423010599,1779745880000,-795.533408,0.00032877,7]
[423010604,1779745880000,-795.533408,0.00032877,7]
[423010610,1779745880000,-795.533408,0.00032877,7]
[423010739,1779745881000,-151.0,0.00032877,7]
[423010742,1779745881000,-151.0,0.00032877,7]
[423010740,1779745881000,-151.0,0.00032877,7]
[423010737,1779745881000,-151.0,0.00032877,7]
[423010733,1779745881000,-835.527149,0.00032877,7]
[423010736,1779745881000,-151.0,0.00032877,7]
[423010735,1779745881000,-219.885232,0.00032877,7]
[423010732,1779745881000,-835.527152,0.00032877,7]
[423010741,1779745881000,-180.413562,0.00032877,7]
[423010744,1779745881000,-151.0,0.00032877,7]
[423010738,1779745881000,-151.0,0.00032877,7]
[423010745,1779745881000,-800.0,0.00032877,30]
[423010761,1779745881000,-596.302988,0.00032877,7]
[423010748,1779745881000,-800.0,0.00032877,30]
[423010747,1779745881000,-800.0,0.00032877,30]
[423010749,1779745881000,-151.0,0.00032877,7]
[423010746,1779745881000,-151.0,0.00032877,7]
[423010751,1779745881000,-800.0,0.00032877,30]